Cogmind - Beta 11 @@@ ROGUE MODE // 2022.03.27 @ 22:39:05 Player: Ahren Result: Destroyed by H-66 Slayer with Gauss Rifle Performance ------------- Evolutions (4) 2000 Regions Visited (9) 1800 Robots Destroyed (105) 525 Value Destroyed (2474) 2474 Prototype IDs (28) 560 Alien Tech Used (0) 0 Bonus (323) 323 TOTAL SCORE: 7682 Bonus ------- High Alert Combat Kills 23 Aligned with FarCom 300 Cogmind --------- Core Integrity 0/850 Matter 45/300 Energy 98/100 System Corruption 12% Temperature Cool (-100) Movement Core (50) Location -6/Extension Parts ------- > --- POWER (1) -------- (None) > --- PROPULSION (3) --- (None) > --- UTILITY (7) ------ Cryofiber Web Modified TNC Improved Utility Shielding > --- WEAPON (4) ------- (None) > --- INVENTORY (5) ---- Improved Deuterium Engine Improved Cooling System High-capacity Storage Unit Improved Utility Shielding Layered Medium Armor Plating Peak State ------------ > --- POWER ------------ Light Angular Momentum Engine > --- PROPULSION ------- Medium Treads Carbon-fiber Leg Flexi-carbon Leg > --- UTILITY ---------- Cryofiber Web Medium Storage Unit Modified TNC Improved Utility Shielding Improved Utility Shielding Layered Medium Armor Plating Hacking Suite > --- WEAPON ----------- Precision Shock Rifle Heavy Laser Heavy Laser Gauss Cannon > --- INVENTORY -------- Improved Titanium Leg Improved Heat Sink Advanced Heat Sink High-capacity Storage Unit Improved Utility Shielding Layered Medium Armor Plating Plasma Cannon Gauss Cannon Improved Grenade Launcher [Rating: 61] Favorites ----------- Power Light Ion Engine Engine Light Ion Engine Power Core Light Nuclear Core Propulsion Light Treads Treads Light Treads Leg Carbon-fiber Leg Wheel Compact Wheel Hover Unit Hover Unit Flight Unit Improved VTOL Module Utility Improved Utility Shielding Device Improved Terrain Scanner Storage Medium Storage Unit Processor Modified TNC Hackware Hacking Suite Protection Improved Utility Shielding Weapon Assault Cannon Energy Gun Heavy Laser Energy Cannon Plasma Cannon Ballistic Gun Heavy Assault Rifle Ballistic Cannon Assault Cannon Launcher Improved Grenade Launcher Special Melee Weapon Datajack Build | -11 -10 -9 -9 -9 -8 -8 -7 -6 -6 ------- Run | Scr Mat Mat Min Exi Min Mat Fac Fac Ext Slots Evolved 8 | . . 2 . . . 2 2 2 . Power . | . . . . . . . . . . Propulsion 1 | . . . . . . 1 . . . Utility 5 | . . 2 . . . . 2 1 . Weapon 2 | . . . . . . 1 . 1 . Parts Attached 90 | 8 6 10 5 1 7 16 14 16 7 Power 14 | 1 1 2 1 . . 2 3 2 2 Engine 11 | 1 1 2 1 . . 1 3 1 1 Core 3 | . . . . . . 1 . 1 1 Reactor . | . . . . . . . . . . Propulsion 27 | 2 2 3 4 . 1 4 4 6 1 Treads 8 | . . . . . . 2 3 2 1 Leg 10 | . 2 1 . . 1 1 1 4 . Wheel 2 | 2 . . . . . . . . . Hover 4 | . . 2 2 . . . . . . Flight 3 | . . . 2 . . 1 . . . Utility 27 | 3 2 2 . 1 5 4 4 5 1 Device 7 | 2 1 . . . 1 . 1 2 . Storage 5 | 1 . . . . 2 1 1 . . Processor 6 | . 1 2 . 1 2 . . . . Hackware 1 | . . . . . . 1 . . . Protection 8 | . . . . . . 2 2 3 1 Artifact . | . . . . . . . . . . Weapon 22 | 2 1 3 . . 1 6 3 3 3 Energy Gun 7 | 1 1 . . . . 2 2 1 . Energy Cannon 2 | . . . . . . . . 1 1 Ballistic Gun 6 | 1 . 2 . . . 2 . . 1 Ballistic Cannon 4 | . . 1 . . 1 . 1 1 . Launcher 2 | . . . . . . 1 . . 1 Special Weapon . | . . . . . . . . . . Impact Weapon . | . . . . . . . . . . Slashing Weapon . | . . . . . . . . . . Piercing Weapon . | . . . . . . . . . . Special Melee Weapon 1 | . . . . . . 1 . . . Unidentified Prototypes 3 | . . . . . . 2 1 . . Corrupted Parts 1 | . . . . . . . . 1 . System Corruption 9 | . . . . . . . . 9 . Parts Lost 22 | . 1 . 2 . . 1 3 3 12 Power 3 | . . . 1 . . . 1 . 1 Propulsion 9 | . . . 1 . . 1 1 2 4 Utility 1 | . . . . . . . . . 1 Weapon 9 | . 1 . . . . . 1 1 6 Highest Loss Streak 11 | . 1 . 2 . . 1 2 2 11 To Critical Strikes . | . . . . . . . . . . Average Slot Usage (%) 93 | . 99 83 97 99 99 91 99 90 64 Engine 7 | . 14 11 9 11 11 6 4 5 4 Core 1 | . . . . . . 2 2 . . Treads 5 | . . . . . . 2 14 6 1 Leg 8 | . 14 17 . . 10 11 7 7 9 Wheel 1 | . 13 . . . . . . . . Hover 4 | . . 4 19 22 11 5 . . . Device 7 | . 16 11 11 11 10 4 1 9 9 Storage 3 | . 2 . . . . 1 7 6 3 Processor 14 | . 8 17 33 32 33 17 7 6 6 Hackware 3 | . . . . . . 7 7 3 . Protection 10 | . . . . . . 6 20 17 13 Energy Gun 7 | . 13 9 . . . 6 10 14 5 Ballistic Gun 5 | . 14 11 11 11 2 7 5 . . Ballistic Cannon 8 | . . . 11 11 19 11 5 8 6 Naked Turns . | . . . . . . . . . . Heaviest Build 63 | 15 15 14 9 9 13 58 63 53 53 Greatest Support 50 | 32 32 20 12 12 13 40 40 50 50 Greatest Overweight (x) 9 | 1 . 2 2 . . 1 1 2 9 Average Overweight (x) . | . . . . . . . . . . Largest Inventory Capacity 25 | 8 8 5 5 5 25 20 20 10 10 Average Capacity 8 | 7 5 5 5 5 5 6 13 10 7 Most Carried 12 | 4 5 5 5 5 5 6 12 10 10 Average Carried 6 | 2 4 4 4 5 3 4 7 9 7 Final Capacity 20 | 8 5 5 5 5 5 20 10 10 5 Final Carried 10 | 4 4 5 5 5 4 6 10 10 5 Class Distribution -------------------- 33% | Skirmisher 32% | Scavenger-Skirmisher 14% | Mutant 9% | Scavenger-Scout 5% | Scavenger-Mutant 3% | Tank Dominant Class ---------------- Mutant | -10/Materials Scavenger-Mutant | -9/Materials Scavenger-Scout | -9/Mines Scavenger-Scout | -9/Exiles Skirmisher | -8/Mines Skirmisher | -8/Materials Scavenger-Skirmisher | -7/Factory Scavenger-Skirmisher | -6/Factory Mutant | -6/Extension Resources | -11 -10 -9 -9 -9 -8 -8 -7 -6 -6 ----------- Run | Scr Mat Mat Min Exi Min Mat Fac Fac Ext Matter Collected 2328 | 319 133 167 210 . 175 420 461 409 34 Remotely . | . . . . . . . . . . Salvage Created 3880 | 224 472 525 440 . 152 475 881 619 92 Parts 244 | 24 32 32 24 . 9 39 43 31 10 Haulers Intercepted 5 | . . . . . . 3 1 1 . Recyclers Shooed 10 | 1 . 3 4 . 1 . . . 1 Parts Field Recycled . | . . . . . . . . . . Retrieved Matter . | . . . . . . . . . . Parts Self-Destructed . | . . . . . . . . . . Prevented . | . . . . . . . . . . Kills | -11 -10 -9 -9 -9 -8 -8 -7 -6 -6 ------- Run | Scr Mat Mat Min Exi Min Mat Fac Fac Ext Combat Hostiles Destroyed 51 | . 6 6 7 . . 8 15 8 1 Guns 33 | . 6 6 5 . . 6 8 1 1 Cannons 18 | . . . 2 . . 2 7 7 . Classes Destroyed 16 | 3 3 2 . . . 3 3 2 . Worker 12 | 2 2 . 1 . 2 4 . . 1 Builder 5 | . 1 . . . 1 . 1 1 1 Tunneler 10 | 5 . 1 . . 1 . 2 . 1 Hauler 5 | . . . . . . 3 1 1 . Recycler 14 | 1 1 4 5 . 2 . . 1 . Mechanic 1 | . 1 . . . . . . . . Operator 4 | . . 2 . . . 1 1 . . Watcher 3 | . . . . . . 1 1 . 1 Swarmer 14 | . . 3 7 . . 4 . . . Grunt 22 | . 6 3 . . . 1 10 2 . Brawler 2 | . . . . . . . 2 . . Protector 1 | . . . . . . . 1 . . Sentry 5 | . . . . . . 3 . 1 1 Specialist 2 | . . . . . . . . 2 . Hunter 1 | . . . . . . . . 1 . Programmer 4 | . . . . . . . 2 2 . Best Kill Streak 13 | 5 4 12 13 . 3 5 5 2 3 Combat Bots Only 7 | . 2 5 7 . . 4 4 2 1 Max Kills in Single Turn 2 | 1 1 2 1 . 2 2 1 1 2 Gunslinging . | . . . . . . . . . . Exploded . | . . . . . . . . . . Melee . | . . . . . . . . . . Uniques/NPCs Destroyed . | . . . . . . . . . . Combat | -11 -10 -9 -9 -9 -8 -8 -7 -6 -6 -------- Run | Scr Mat Mat Min Exi Min Mat Fac Fac Ext Damage Taken 4485 | . 198 153 251 . . 234 822 665 2162 Core 1118 | . 11 36 38 . . 77 98 39 819 Absorbed by Shields . | . . . . . . . . . . Redirected to Shielding 125 | . . . . . . . 16 18 91 Regen/Repaired (Parts) 167 | . . . . . . . 167 . . Core Remaining (%) 89 | 100 95 . . . 81 86 86 . . Volleys Fired 242 | 13 26 27 31 . 18 34 48 29 16 Largest 4 | 2 2 2 2 . 2 3 3 4 4 Hottest 266 | 60 60 60 59 . 83 130 172 266 245 Shots Fired 582 | 26 46 54 62 . 36 94 121 98 45 Gun 378 | 26 46 54 31 . . 59 94 55 13 Cannon 200 | . . . 31 . 36 35 27 43 28 Launcher 4 | . . . . . . . . . 4 Special . | . . . . . . . . . . Kinetic 352 | 13 26 27 62 . 36 66 54 41 27 Thermal 143 | . 6 27 . . . 24 30 42 14 Explosive 4 | . . . . . . . . . 4 Electromagnetic 83 | 13 14 . . . . 4 37 15 . Robot Hit Streak 19 | 3 7 9 6 . 5 7 12 19 10 Robot Miss Streak 7 | 3 5 7 3 . 5 3 3 4 7 Penetration Max 1 | . . . . . . . . . 1 Secondary Targets 3 | . . 2 . . . . 1 . . Max Gunslinging Chain 1 | . . 1 . . . . 1 . . Shots Hit Robots 339 | 12 26 33 37 . 16 47 82 60 26 Core Hits 173 | 8 17 23 17 . 5 22 40 20 21 Critical Kills 1 | . . . . . . 1 . . . Critical Parts Destroyed . | . . . . . . . . . . Critical Strikes 16 | . 1 . . . 1 2 5 6 1 Burn 1 | . . . . . . . . 1 . Destroy 1 | . . . . . . 1 . . . Blast 13 | . . . . . 1 1 5 5 1 Corrupt 1 | . 1 . . . . . . . . Melee Attacks 2 | . . . . . . 2 . . . Impact . | . . . . . . . . . . Slashing . | . . . . . . . . . . Piercing . | . . . . . . . . . . Sneak Attacks . | . . . . . . . . . . Combat Hostiles . | . . . . . . . . . . Follow-up Attacks . | . . . . . . . . . . Damage Inflicted 6802 | 151 331 417 563 . 442 886 1609 1190 1213 Guns 3376 | 151 331 417 165 . . 480 1121 514 197 Cannons 2896 | . . . 398 . 336 406 451 650 655 Explosions 524 | . . . . . 100 . 37 26 361 Melee . | . . . . . . . . . . Ramming 6 | . . . . . 6 . . . . Kinetic 3991 | 51 203 238 563 . 336 652 684 624 640 Thermal 1490 | . . 179 . . 100 186 413 400 212 Explosive 361 | . . . . . . . . . 361 Electromagnetic 954 | 100 128 . . . . 48 512 166 . Impact . | . . . . . . . . . . Slashing . | . . . . . . . . . . Piercing . | . . . . . . . . . . Highest Corruption 11 | . 2 . . . . . 4 10 11 Average Corruption 6 | . 2 . . . . . 2 9 10 Corruption Purged . | . . . . . . . . . . Corruption Blocked . | . . . . . . . . . . Effects 48 | . 3 . . . . . 13 17 15 Message Errors 14 | . . . . . . . 5 6 3 Matter Fused 7 | . . . . . . . 1 2 4 Heat Flow Errors 1 | . . . . . . . . 1 . Energy Discharges 10 | . 1 . . . . . 2 2 5 Parts Rejected 1 | . . . . . . . . . 1 Data Loss (minor) 8 | . 1 . . . . . 4 2 1 Data Loss (major) 2 | . 1 . . . . . . 1 . Misfires 2 | . . . . . . . . 2 . Alerts 1 | . . . . . . . 1 . . Misdirections 1 | . . . . . . . . . 1 Weapon Failures 1 | . . . . . . . . 1 . Overload Shots . | . . . . . . . . . . Overflow Damage 126 | . . . 3 . 21 . . 80 22 Projectiles 43 | . . . 3 . 1 . . 17 22 Explosions 83 | . . . . . 20 . . 63 . Melee . | . . . . . . . . . . Knockbacks 18 | . . . 3 . 6 . 1 6 2 Impact . | . . . . . . . . . . Kinetic 18 | . . . 3 . 6 . 1 6 2 Secondary . | . . . . . . . . . . Self-Inflicted Damage 241 | . . . . . . . . 213 28 Shots 4 | . . . . . . . . 2 2 Rammed . | . . . . . . . . . . Targets Rammed 1 | . . . . . 1 . . . . Kicked 1 | . . . . . 1 . . . . Crushed . | . . . . . . . . . . Highest Temperature 415 | 20 38 18 32 . 52 365 415 372 333 Average Temperature 93 | 20 21 7 11 . 19 94 139 121 200 Received Heat Transfer 858 | . 111 60 . . . 135 201 45 306 Effects 8 | . . . . . . 2 5 1 . Shutdowns 1 | . . . . . . 1 . . . Energy Bleed 2 | . . . . . . . 2 . . Interference 4 | . . . . . . 1 2 1 . Matter Decay 1 | . . . . . . . 1 . . Siege Activations . | . . . . . . . . . . Robots Corrupted . | . . . . . . . . . . Combat Hostiles . | . . . . . . . . . . Parts Fried 4 | . . . . . . . 3 1 . Impact Corruptions . | . . . . . . . . . . Robots Melted . | . . . . . . . . . . Combat Hostiles . | . . . . . . . . . . Parts Melted 2 | . . . . . 1 . . 1 . Heat Transferred 2837 | . . 400 . . 100 407 690 840 400 Parts Sabotaged . | . . . . . . . . . . Parts Stolen . | . . . . . . . . . . Parts Stripped . | . . . . . . . . . . Power Chain Reactions 1 | . . . . . . . 1 . . Missiles Intercepted . | . . . . . . . . . . Alert | -11 -10 -9 -9 -9 -8 -8 -7 -6 -6 ------- Run | Scr Mat Mat Min Exi Min Mat Fac Fac Ext Peak Influence 474 | 40 259 229 274 . 102 254 474 334 185 Initial 186 | . 26 24 88 . . 39 46 186 156 Average 129 | 18 107 134 181 . 9 118 161 206 125 Maximum Alert Level 2 | . 1 1 1 . . 1 2 1 . Low Security (%) 74 | 100 81 64 49 . 100 76 60 68 100 Level 1 23 | . 18 35 50 . . 23 35 31 . Level 2 1 | . . . . . . . 4 . . Level 3 . | . . . . . . . . . . Level 4 . | . . . . . . . . . . Level 5 . | . . . . . . . . . . High Security . | . . . . . . . . . . Max Security . | . . . . . . . . . . Squads Dispatched 19 | . 2 1 . . 1 1 4 5 5 Investigation 6 | . 1 . . . . . 1 . 4 Extermination 4 | . . . . . . . 1 3 . Reinforcement 8 | . 1 1 . . 1 1 1 2 1 Assault 1 | . . . . . . . 1 . . Garrison . | . . . . . . . . . . Intercept . | . . . . . . . . . . Searches Triggered . | . . . . . . . . . . Construction Impeded 2 | . . . . . 1 . . . 1 Haulers Reinforced . | . . . . . . . . . . Active Scanning Responses . | . . . . . . . . . . Cargo Convoy Interrupts . | . . . . . . . . . . Stealth | -11 -10 -9 -9 -9 -8 -8 -7 -6 -6 --------- Run | Scr Mat Mat Min Exi Min Mat Fac Fac Ext Distress Signals 5 | . 2 1 . . . 1 . . 1 Communications Jammed . | . . . . . . . . . . Distress Signals . | . . . . . . . . . . Times Spotted 94 | . 10 16 8 . . 11 27 11 11 Peak Tracking Total 8 | . 6 6 8 . . 5 6 3 4 Tactical Retreats 4 | . 1 . . . . . 1 . 2 Traps | -11 -10 -9 -9 -9 -8 -8 -7 -6 -6 ------- Run | Scr Mat Mat Min Exi Min Mat Fac Fac Ext Traps Triggered 3 | . 1 . . . . . . . 2 Indirectly . | . . . . . . . . . . Trap Hack Attempts . | . . . . . . . . . . Triggered . | . . . . . . . . . . Disarmed 6 | . . . . . . 6 . . . Reprogrammed . | . . . . . . . . . . Reused . | . . . . . . . . . . Traps Extracted . | . . . . . . . . . . Installed . | . . . . . . . . . . Triggered . | . . . . . . . . . . Machines | -11 -10 -9 -9 -9 -8 -8 -7 -6 -6 ---------- Run | Scr Mat Mat Min Exi Min Mat Fac Fac Ext Machines Disabled 11 | . . . . . 3 3 3 2 . Max in Single Turn 2 | . . . . . 2 1 1 2 . Garrison Access 2 | . . . . . . . 2 . . Machines Sabotaged . | . . . . . . . . . . Garrisons Compromised . | . . . . . . . . . . Overloaded Fab Kills . | . . . . . . . . . . Hacking | -11 -10 -9 -9 -9 -8 -8 -7 -6 -6 --------- Run | Scr Mat Mat Min Exi Min Mat Fac Fac Ext Machines Accessed 26 | . 5 1 1 5 . 5 3 1 5 Terminals 16 | . 4 1 1 . . 4 . 1 5 Fabricators . | . . . . . . . . . . Repair Stations 1 | . . . . . . . 1 . . Recycling Units 2 | . 1 . . . . 1 . . . Scanalyzers 1 | . . . . . . . 1 . . Garrison Access 1 | . . . . . . . 1 . . Total Hacks 67 | . 10 3 4 9 . 14 8 1 18 Successful 48 | . 5 1 3 9 . 12 8 1 9 Failed 19 | . 5 2 1 . . 2 . . 9 Catastrophic 2 | . . . . . . . . . 2 Database Lockouts . | . . . . . . . . . . Manual 3 | . 1 . . 2 . . . . . Terminals 46 | . 8 3 4 . . 12 . 1 18 Fabricators . | . . . . . . . . . . Repair Stations 4 | . . . . . . . 4 . . Recycling Units 4 | . 2 . . . . 2 . . . Scanalyzers 3 | . . . . . . . 3 . . Garrison Access 1 | . . . . . . . 1 . . Terminal Hacks 37 | . 4 1 3 9 . 10 . 1 9 Record 18 | . 1 . 3 8 . 3 . . 3 Prototype ID Bank 1 | . 1 . . . . . . . . Open Door 1 | . . . . . . . . 1 . Branch Access Points 2 | . . 1 . . . . . . 1 Alert Level 1 | . . . . . . . . . 1 Locate Traps 4 | . . . . . . 3 . . 1 Disarm Traps 1 | . . . . . . 1 . . . Investigation Status 1 | . 1 . . . . . . . . Hauler Manifests 1 | . . . . . . 1 . . . Registered Components 1 | . . . . . . 1 . . . Registered Prototypes 1 | . . . . . . . . . 1 Zone Layout 4 | . 1 . . . . 1 . . 2 EX-Prototype ID Bank 1 | . . . . 1 . . . . . Fabricator Hacks . | . . . . . . . . . . Repair Station Hacks 4 | . . . . . . . 4 . . Scan Component 2 | . . . . . . . 2 . . Repair 2 | . . . . . . . 2 . . Recycling Unit Hacks 3 | . 1 . . . . 2 . . . Report Inventory 2 | . 1 . . . . 1 . . . Retrieve Components 1 | . . . . . . 1 . . . Scanalyzer 3 | . . . . . . . 3 . . Insert Component 2 | . . . . . . . 2 . . Analyze 1 | . . . . . . . 1 . . Garrison Access Hacks 1 | . . . . . . . 1 . . Seal Access 1 | . . . . . . . 1 . . Unauthorized Hacks . | . . . . . . . . . . Terminals . | . . . . . . . . . . Fabricators . | . . . . . . . . . . Repair Stations . | . . . . . . . . . . Recycling Units . | . . . . . . . . . . Scanalyzers . | . . . . . . . . . . Garrison Access . | . . . . . . . . . . Data Cores Recovered 2 | . . . . . . 1 1 . . Used . | . . . . . . . . . . Hacking Detections 16 | . 4 1 1 . . 2 2 1 5 Full Trace Events 6 | . 1 . . . . . 1 . 4 Feedback Events 1 | . . . . . . . . . 1 Corruption 1 | . . . . . . . . . 1 Feedback Blocked . | . . . . . . . . . . Robot Schematics Acquired . | . . . . . . . . . . Robots Built . | . . . . . . . . . . Authchips . | . . . . . . . . . . Time . | . . . . . . . . . . Total Robot Build Rating . | . . . . . . . . . . Part Schematics Acquired 1 | . . . . . . . 1 . . Parts Built . | . . . . . . . . . . Authchips . | . . . . . . . . . . Time . | . . . . . . . . . . Total Part Build Rating . | . . . . . . . . . . Parts Repaired 2 | . . . . . . . 2 . . Time 52 | . . . . . . . 52 . . Parts Recycled . | . . . . . . . . . . Recycled Matter . | . . . . . . . . . . Retrieved Matter . | . . . . . . . . . . Retrieved Components 2 | . . . . . . 2 . . . Parts Scanalyzed 1 | . . . . . . . 1 . . Part Schematics Acquired 1 | . . . . . . . 1 . . Parts Damaged . | . . . . . . . . . . Bothacking | -11 -10 -9 -9 -9 -8 -8 -7 -6 -6 ------------ Run | Scr Mat Mat Min Exi Min Mat Fac Fac Ext Used RIF Installer . | . . . . . . . . . . Robots Hacked 1 | . . . . . . 1 . . . Non-combat . | . . . . . . . . . . Combat 1 | . . . . . . 1 . . . Robot Hacks Applied 1 | . . . . . . 1 . . . parse_system 1 | . . . . . . 1 . . . Relay Couplers Released 2 | . . . . . . . 2 . . Machine Destruction 2 | . . . . . . . 2 . . Fabnet Peak Effective % . | . . . . . . . . . . Robots Rewired . | . . . . . . . . . . Allies Hacked . | . . . . . . . . . . Hacks Repelled . | . . . . . . . . . . Allies | -11 -10 -9 -9 -9 -8 -8 -7 -6 -6 -------- Run | Scr Mat Mat Min Exi Min Mat Fac Fac Ext Total Allies . | . . . . . . . . . . Largest Group . | . . . . . . . . . . Highest-Rated Group . | . . . . . . . . . . Highest-Rated Ally . | . . . . . . . . . . Total Orders . | . . . . . . . . . . Ally Attacks . | . . . . . . . . . . Total Damage . | . . . . . . . . . . Kills . | . . . . . . . . . . Allies Corrupted . | . . . . . . . . . . Allies Melted . | . . . . . . . . . . Intel | -11 -10 -9 -9 -9 -8 -8 -7 -6 -6 ------- Run | Scr Mat Mat Min Exi Min Mat Fac Fac Ext Robot Analysis Total . | . . . . . . . . . . Derelict Logs Recovered 1 | . . . 1 . . . . . . Drone Launches . | . . . . . . . . . . Drone Recoveries . | . . . . . . . . . . Exploration | -11 -10 -9 -9 -9 -8 -8 -7 -6 -6 ------------- Run | Scr Mat Mat Min Exi Min Mat Fac Fac Ext Turns Passed 6104 | 161 481 272 281 313 753 803 1799 766 475 Spaces Moved 3721 | 106 344 133 298 548 582 326 777 276 331 Core 145 | 3 . . . . . . . . 142 Treads 1068 | . . . . . . 36 776 174 82 Legs 1253 | . 169 78 . . 506 290 1 102 107 Wheels 278 | 103 175 . . . . . . . . Hover 973 | . . 55 294 548 76 . . . . Flight 4 | . . . 4 . . . . . . Fastest Speed 50 | 50 100 56 56 56 56 120 160 120 50 Average Speed 128 | 99 109 98 57 56 111 165 188 222 125 Slowest Speed 500 | 100 120 180 195 56 120 240 240 320 500 Overloaded Moves . | . . . . . . . . . . Propulsion Burnouts . | . . . . . . . . . . Robots Hopped . | . . . . . . . . . . Cave-ins Triggered . | . . . . . . . . . . Exploration Rate (%) 38 | 5 53 10 45 93 82 33 16 8 43 Regions Visited 9 Branch Regions 4 Pre-discovered Areas 2 | . . . 1 1 . . . . . Known Exits Taken 1 | . . 1 . . . . . . . Unknown Exits Taken 8 | 1 1 . 1 1 1 1 1 1 . Scrap Searched 2 | . . . . . 2 . . . . Spaces Dug . | . . . . . . . . . . Terrain Destroyed 128 | . . . 2 . 30 8 15 49 24 Melee . | . . . . . . . . . . Projectile 30 | . . . 2 . 7 8 4 9 . AOE 98 | . . . . . 23 . 11 40 24 Terrain Rammed . | . . . . . . . . . . Walls Destroyed . | . . . . . . . . . . Machines Disabled . | . . . . . . . . . . Actions | -11 -10 -9 -9 -9 -8 -8 -7 -6 -6 --------- Run | Scr Mat Mat Min Exi Min Mat Fac Fac Ext Total 4558 | 132 400 219 351 553 650 518 1014 362 359 Wait 394 | . 17 39 16 4 32 112 150 23 1 Move 3712 | 105 343 132 297 547 581 325 776 275 331 Hop . | . . . . . . . . . . Pick Up 41 | 5 3 2 . . 2 10 12 6 1 Fast Attach 58 | 7 2 8 3 1 6 11 7 11 2 Attach 17 | 1 . . 1 . . 2 4 4 5 Detach 9 | . . . 1 . . 2 4 2 . Swap 15 | . 4 2 1 . 1 3 3 1 . Drop 67 | 1 5 9 1 1 9 17 10 11 3 Fire 242 | 13 26 27 31 . 18 34 48 29 16 Melee 2 | . . . . . . 2 . . . Ram . | . . . . . . . . . . Kick 1 | . . . . . 1 . . . . Crush . | . . . . . . . . . . Escape Stasis . | . . . . . . . . . . Rewire . | . . . . . . . . . . Trap . | . . . . . . . . . . Miscellaneous . | . . . . . . . . . . Route ------- -11/Scrapyard -10/Materials -9/Materials (discovered 2 exits: *Min x2) -9/Mines (discovered 2 exits: *Mat / *Exi) -9/Exiles (discovered 2 exits: [*Min x2]) -8/Mines (discovered 2 exits: *Mat x2) -8/Materials -7/Factory -6/Factory (discovered 2 exits: [*Fac] / *Ext) -6/Extension (discovered 1 exit: Cet) History --------- Turn | Location | Event 47 | -11/Scrapyard | Discovered new exit (range 16) 162 | -11/Scrapyard | Entered Materials 307 | -10/Materials | Build established: Mutant 408 | -10/Materials | Discovered new exit (range 10) 643 | -10/Materials | Entered another Materials area 643 | -9/Materials | Evolved 2 slots: Utility x2 722 | -9/Materials | Identified exit to Mines 915 | -9/Materials | Entered Mines 940 | -9/Mines | Learned location of Zion (-6) 943 | -9/Mines | Deemed a non-threat by the Exiles lab entrance 943 | -9/Mines | Discovered new exit (range 5) 1019 | -9/Mines | Discovered new exit (range 6) 1079 | -9/Mines | Destroyed 7 combat bots 1181 | -9/Mines | Build established: Scavenger-Scout 1196 | -9/Mines | Entered Exiles 1204 | -9/Exiles | Discovered new exit (range 15) 1209 | -9/Exiles | Met 8R-AWN 1218 | -9/Exiles | Met EX-HEX 1241 | -9/Exiles | Met EX-DEC 1278 | -9/Exiles | Discovered new exit (range 16) 1324 | -9/Exiles | Visited The Gauntlet 1410 | -9/Exiles | Met EX-BIN 1422 | -9/Exiles | Aligned with FarCom system 1423 | -9/Exiles | Given EX-Vault access code 1444 | -9/Exiles | Opened EX-Vault 1450 | -9/Exiles | Found Modified TNC 1467 | -9/Exiles | Warned to stay clear of 0b10 Research branches 1509 | -9/Exiles | Left Exiles lab with Modified TNC 1509 | -9/Exiles | Entered Mines 1548 | -8/Mines | Discovered new exit (range 6) 1674 | -8/Mines | Discovered new exit (range 15) 1946 | -8/Mines | Build established: Skirmisher 2262 | -8/Mines | Entered Materials 2262 | -8/Materials | Evolved 2 slots: Propulsion x1, Weapon x1 2942 | -8/Materials | Discovered new exit (range 16) 3065 | -8/Materials | Entered Factory 3065 | -7/Factory | Evolved 2 slots: Utility x2 4077 | -7/Factory | Build established: Scavenger-Skirmisher 4205 | -7/Factory | Repaired Lgt. Treads 4235 | -7/Factory | Repaired Lgt. Treads? 4839 | -7/Factory | Discovered new exit (range 16) 4864 | -7/Factory | Entered another Factory area 4864 | -6/Factory | Evolved 2 slots: Utility x1, Weapon x1 5379 | -6/Factory | System corruption reached 10% 5397 | -6/Factory | Discovered new exit (range 15) 5623 | -6/Factory | Discovered new exit (range 6) 5630 | -6/Factory | Entered Extension 5817 | -6/Extension | Spotted B-75 Beast 5864 | -6/Extension | Spotted B-75 Beast 5897 | -6/Extension | Core integrity fell below 50% 5925 | -6/Extension | Lost 11 parts (1p3n1u6w) 5937 | -6/Extension | Identified exit to Cetus 6098 | -6/Extension | Core integrity fell below 20% 6105 | -6/Extension | Destroyed by H-66 Slayer with Gauss Rifle Last Messages --------------- >>Layout(Zone) Retrieving Zone 4H layout... Downloaded map data. 05966_ System corrupted: Energy discharge (-104). 05989_ BWHD RODE5:#FJHS0GO:5KC